[Event "Rosh Hashanah Rapid 2022"]
[Site "Ramat Gan"]
[Date "2022.09.25"]
[Round "5.3"]
[White "Zanan, Evgeny"]
[Black "Gorodetzky, David"]
[Result "1-0"]
[ECO "C60"]
[WhiteElo "2485"]
[BlackElo "2495"]
[Annotator "TA"]
[PlyCount "61"]
[EventDate "2022.09.25"]
[EventType "rapid"]
[EventCountry "ISR"]
[SourceTitle "playchess.com"]
[Source "ChessBase"]
[SourceQuality "1"]
[TimeControl "900+5"]

{[%evp 9,61,20,32,31,34,37,21,21,29,3,41,39,42,13,25,19,41,48,48,48,54,35,26,8,19,0,12,6,10,0,25,0,23,0,15,7,11,15,100,6,12,8,451,440,477,485,484,481,645,701,690,677,652,637]} 1. e4 {[%emt 0:00:02]} e5 {[%emt 0:00:16]} 2. Nf3 {[%emt 0:00:02]} Nc6 {[%emt 0:00:01]} 3. Bb5 {[%emt 0:00:01]} Nge7 {[%emt 0:00:02]} 4. Nc3 {[%emt 0:00:03]} Ng6 {[%emt 0:00:35]} 5. d4 {[%emt 0:00:14]} Nxd4 {[%emt 0:00:31]} 6. Nxd4 {[%emt 0:00:03] C60: Ruy Lopez: Unusual Black 3rd moves and 3...g6.} exd4 {[%emt 0:00:03]} 7. Qxd4 {[%emt 0:00:06][%cal Oh2h4]} c6 {[%emt 0:00:01]} 8. Be2 {[%emt 0:00:28] The position is equal.} Qb6 {[%emt 0:01:34]} 9. Be3 {[%emt 0:00:58]} Qxd4 {[%emt 0:01:30]} (9... Qxb2 {seems wilder.} 10. Rb1 Qa3 11. f4 Qd6) 10. Bxd4 {[%emt 0:00:02]} Nf4 {[%emt 0:00:27]} 11. Bf1 {[%emt 0:00:14] [#]} Ne6 $146 {[%emt 0:02:15]} ({Predecessor:} 11... d6 12. O-O-O Ne6 13. Be3 Be7 14. f4 O-O 15. f5 Nc5 16. Bf4 d5 17. exd5 Bxf5 18. dxc6 bxc6 {0-1 (46) Raja,H (2494)-Theodorou,N (2576) Charlotte 2021}) 12. Be3 {[%emt 0:00:02]} Be7 {[%emt 0:01:42]} 13. O-O-O {[%emt 0:00:16]} O-O {[%emt 0:01:30]} 14. f4 {[%emt 0:00:06]} b5 {[%emt 0:03:31]} 15. e5 {[%emt 0:01:15]} f6 {[%emt 0:00:57]} 16. exf6 {[%emt 0:02:00]} Rxf6 {[%emt 0:00:18]} 17. Ne4 {[%emt 0:00:27]} Rf8 {[%emt 0:00:31]} 18. Nd6 {[%emt 0:01:16]} Nxf4 {[%emt 0:00:01]} 19. c4 {[%emt 0:00:39] Inhibits Nd5.} a6 {[%emt 0:00:39]} (19... Bxd6 $5 20. Rxd6 a6 $11) 20. g3 {[%emt 0:00:43]} Ng6 {[%emt 0:00:07][%cal Bf4g6,Bg6e5,Be5f3][%mdl 32]} 21. c5 {[%emt 0:01:50]} (21. Bc5 {is more complex.} Ne5 22. Re1 Rxf1 23. Rhxf1 Nd3+ 24. Kc2) 21... Ne5 {[%emt 0:00:02]} 22. Bh3 {[%emt 0:00:09]} Bxd6 {[%emt 0:00:14]} 23. cxd6 {[%emt 0:00:02]} c5 {[%emt 0:00:02] [#]} (23... Bb7 $11 {keeps the balance.}) 24. Bxc5 {[%emt 0:00:28] White is more active.} ({White should try} 24. Rhe1 $1 $16) 24... Bb7 $11 {[%emt 0:00:04]} 25. Rhe1 {[%emt 0:00:02]} Nf3 {[%emt 0:00:10][%mdl 8192] Loses the game.} (25... Rae8 $11) 26. Re7 $18 {[%emt 0:00:06] White is clearly winning.} ({Less strong is} 26. Bxd7 Nxe1 27. Be6+ Kh8 $18) 26... Bc6 {[%emt 0:00:05]} 27. Bxd7 {[%emt 0:00:20]} Bxd7 {[%emt 0:00:02]} 28. Rxd7 {[%emt 0:00:02]} Nxh2 {[%emt 0:00:09]} 29. Bd4 {[%emt 0:00:14]} Rf7 {[%emt 0:00:02]} 30. Rxf7 {[%emt 0:00:19]} Kxf7 {[%emt 0:00:01]} 31. d7 {[%emt 0:00:07] Weighted Error Value: White=0.14 (very precise) /Black=0.48} 1-0

[Event "Rosh Hashanah Rapid 2022"]
[Site "Ramat Gan"]
[Date "2022.09.25"]
[Round "5.4"]
[White "Dvoirys, Semen I."]
[Black "Veinberg, Nimrod"]
[Result "1-0"]
[ECO "C99"]
[WhiteElo "2461"]
[BlackElo "2400"]
[Annotator "TA"]
[PlyCount "83"]
[EventDate "2022.09.25"]
[EventType "rapid"]
[EventCountry "ISR"]
[SourceTitle "playchess.com"]
[Source "ChessBase"]
[SourceQuality "1"]
[TimeControl "900+5"]

{[%evp 25,82,43,37,36,43,24,25,15,40,44,91,101,392,115,264,284,278,255,271,219,274,278,240,142,149,0,0,-58,240,0,0,-54,0,-83,-76,-404,-383,-505,-499,-714,19,18,309,304,310,304,277,294,729,705,701,695,29991,29992,29997,1001,29998,29999,29999]} 1. e4 {[%emt 0:00:03]} e5 {[%emt 0:00:00]} 2. Nf3 {[%emt 0:00:02]} Nc6 {[%emt 0:00:01]} 3. Bb5 {[%emt 0:00:12]} a6 {[%emt 0:00:01]} 4. Ba4 {[%emt 0:00:01]} Nf6 {[%emt 0:00:01]} 5. O-O {[%emt 0:00:02]} Be7 {[%emt 0:00:02]} 6. Re1 {[%emt 0:00:04]} b5 {[%emt 0:00:01]} 7. Bb3 {[%emt 0:00:01]} d6 {[%emt 0:00:01]} 8. c3 {[%emt 0:00:01]} O-O {[%emt 0:00:02]} 9. h3 {[%emt 0:00:03]} Na5 {[%emt 0:00:02]} 10. Bc2 {[%emt 0:00:02]} c5 {[%emt 0:00:01]} 11. d4 {[%emt 0:00:02]} Qc7 {[%emt 0:00:01]} 12. Nbd2 {[%emt 0:00:05]} cxd4 {[%emt 0:00:02]} 13. cxd4 {[%emt 0:00:02]} Bd7 {[%emt 0:00:01]} 14. Nf1 {[%emt 0:00:22] C99: Closed Ruy Lopez: Chigorin Defence: 11 d4 Qc7 12 Nbd2 cxd4.} Rfe8 {[%emt 0:00:02]} 15. Ng3 {[%emt 0:00:35]} Rac8 {[%emt 0:00:24]} 16. Re2 {[%emt 0:01:07] White has an edge.} exd4 {[%emt 0:03:09]} 17. Nxd4 {[%emt 0:00:05] [#]} d5 $146 {[%emt 0:02:54]} (17... g6 $14) ({Predecessor:} 17... Bf8 18. Bg5 Qd8 19. Ndf5 h6 20. Bf4 Bxf5 21. Nxf5 Nc4 22. b3 Ne5 23. Rd2 Qc7 {1-0 (43) Chaucanes,L (1982)-Morales,D Bogota 2006}) 18. e5 $16 {[%emt 0:01:07]} Bc5 $2 {[%emt 0:00:01][%mdl 8192]} (18... Ne4 $16) 19. Nf3 $2 {[%emt 0:03:27]} (19. exf6 $18 {is the precise move to win.} g6 20. Ngf5 $1 {[%mdl 512]}) 19... Nc6 {[%emt 0:00:10]} (19... Ne4 $16 {was called for.} 20. Nxe4 dxe4 21. Bxe4 h6) 20. Bf4 $1 $18 {[%emt 0:01:14]} d4 {[%emt 0:01:01]} 21. Bb3 {[%emt 0:02:28] Inhibits Nd5.} Be6 {[%emt 0:00:50]} 22. Rc1 {[%emt 0:00:34]} Bxb3 {[%emt 0:00:44]} 23. Qxb3 {[%emt 0:00:16]} Na5 {[%emt 0:00:03]} 24. Qd3 {[%emt 0:00:24]} ({White should play} 24. Qc2 $1 $18 Red8 25. Qf5 (25. exf6 Qxf4 26. Rd1 g6 $15)) 24... Nd5 $16 {[%emt 0:00:04]} 25. Ng5 {[%emt 0:00:42] White has more active pieces.} g6 $11 {[%emt 0:00:25]} (25... Nxf4 {gets mated.} 26. Qxh7+ Kf8 27. Nf5 $1 (27. Qh8+ Ke7 $11) 27... Nxe2+ 28. Kf1) 26. Qf3 {[%emt 0:00:15]} (26. e6 $11 Nxf4 27. Rxc5 $1 Nxd3 28. Rxc7) 26... d3 $2 {[%emt 0:00:14][%mdl 8192]} (26... Nxf4 $15 {keeps the upper hand.} 27. Qxf4 d3 28. Rxc5 dxe2 29. Nxe2 Qe7 30. Rxc8 Rxc8) 27. Qxd5 $2 {[%emt 0:01:50]} (27. e6 $18 Nxf4 28. exf7+ Qxf7 29. Nxf7 Nxe2+ 30. Kh2 (30. Nxe2 dxe2 31. Re1 Rf8 $16)) 27... dxe2 28. Nxe2 {[%emt 0:00:02]} (28. N3e4 $1 $11) 28... Nc4 {[%emt 0:00:33]} (28... Red8 $15 29. Qf3 Qb7) 29. b3 {[%emt 0:00:21]} (29. Ne4 $11) 29... Rcd8 {[%emt 0:02:43]} ({Don't take} 29... Nxe5 30. Ne4 Bxf2+ 31. Kxf2 Qb6+ 32. Be3 $16) 30. Qf3 {[%emt 0:00:50][%mdl 8192]} (30. bxc4 $17 Rxd5 31. cxd5) 30... Nxe5 $19 {[%emt 0:00:07]} 31. Qg3 {[%emt 0:00:05] Threatens to win with Ne4.} Qe7 $1 {[%emt 0:00:37]} 32. Ne4 {[%emt 0:00:21]} (32. Bxe5 $142 Qxe5 33. Nf3 Bxf2+ 34. Qxf2 Qxe2 35. Rf1) 32... Bb6 $2 {[%emt 0:00:01]} (32... Nd3 $19 33. Nxc5 Nxc1 34. Bxc1 Qxc5) 33. Bg5 $36 {[%emt 0:00:02][%mdl 3072] White has compensation. White has the initiative.} Qe6 {[%emt 0:00:56][%mdl 8192]} (33... Qa7 $1 $11 {and Black is okay.} 34. Nf4 (34. Bxd8 Bxd8 35. Rd1 Nc6 $14) 34... Nd7 35. Bxd8 Bxd8) 34. Nf6+ {[%emt 0:00:01][%cal Be4f6,Bf6h5,Bh5f6,Bf6d5,Bd5b6][%mdl 32]} Kg7 {[%emt 0:00:06] [#]} 35. Qh4 $1 {[%emt 0:00:05] White wants to mate with Qh6+.} h5 {[%emt 0:00:27][%cal Oe5f3] [#]} 36. Nf4 $1 {[%emt 0:00:02] The board is on fire. Pair of Knights!} Qf5 {[%emt 0:00:15]} (36... Qd6 37. Ne4 Bxf2+ 38. Qxf2 Qd4) 37. N4xh5+ $18 {[%emt 0:00:24]} gxh5 {[%emt 0:01:34]} 38. Nxh5+ {[%emt 0:00:01][%mdl 64] Discovered Attack} Kg8 {[%emt 0:00:28]} 39. Nf6+ {[%emt 0:00:06]} Kf8 {[%emt 0:00:01]} 40. Qh6+ {[%emt 0:00:20]} Ke7 {[%emt 0:00:00]} 41. Nd5+ {[%emt 0:00:02][%mdl 64] Discovered Attack (Double check), Double Attack} Kd7 {[%emt 0:00:07]} 42. Nxb6# {[%emt 0:00:00] What a fight!  Weighted Error Value: White=0.80/Black=0.81} 1-0

[Event "Rosh Hashanah Rapid 2022"]
[Site "Ramat Gan"]
[Date "2022.09.25"]
[Round "5.5"]
[White "Zak, Uriel"]
[Black "Sokolovsky, Yahli"]
[Result "0-1"]
[ECO "A49"]
[WhiteElo "2262"]
[BlackElo "2419"]
[Annotator "TA"]
[PlyCount "68"]
[EventDate "2022.09.25"]
[EventType "rapid"]
[EventCountry "ISR"]
[SourceTitle "playchess.com"]
[Source "ChessBase"]
[SourceQuality "1"]
[TimeControl "900+5"]

{[%evp 15,68,0,5,0,0,0,0,-41,-29,-32,0,-24,6,8,8,-23,-25,-56,-50,-44,-45,-45,-47,-179,-177,-194,-193,-191,-160,-189,-199,-173,-178,-153,-116,-145,-112,-109,-119,-143,-164,-162,-172,-206,-206,-205,-188,-197,-179,-266,-266,-282,-317,-291,-242]} 1. d4 {[%emt 0:02:07] Krasenkow,Michal} Nf6 {[%emt 0:00:04]} 2. Nf3 {[%emt 0:00:01]} g6 {[%emt 0:00:03]} 3. g3 {[%emt 0:00:10]} Bg7 {[%emt 0:00:02]} 4. Bg2 {[%emt 0:00:01]} O-O {[%emt 0:00:03]} 5. O-O {[%emt 0:00:02]} d6 {[%emt 0:00:01]} 6. b3 {[%emt 0:00:04]} b5 {[%emt 0:00:02]} 7. Bb2 {[%emt 0:00:04]} Bb7 {[%emt 0:00:01]} 8. Nbd2 {[%emt 0:00:03]} Nbd7 {[%emt 0:00:06]} 9. c4 {[%emt 0:00:06] A49: 1 d4 Nf6 2 Nf3 g6 3 g3: Anti-King's Indian systems.} bxc4 {[%emt 0:00:01]} 10. Nxc4 {[%emt 0:00:04]} a5 {[%emt 0:00:01] [#]} 11. Ne1 $146 {[%emt 0:00:25] The position is equal.} ({Predecessor:} 11. Rc1 c5 12. dxc5 Nxc5 13. Bd4 Ncd7 14. a4 Ra6 15. Na3 Qa8 16. Nb5 Rc6 17. Rxc6 Bxc6 {0-1 (58) Meier,G (2628)-Carlsen,M (2845) Karlsruhe/Baden Baden 2019 CBM 190 [Krasenkow,Michal]}) 11... Bxg2 {[%emt 0:00:11]} 12. Nxg2 {[%emt 0:00:03]} c5 {[%emt 0:00:16]} 13. Nge3 {[%emt 0:00:20]} Ra6 {[%emt 0:00:45]} 14. dxc5 {[%emt 0:01:09]} Nxc5 {[%emt 0:00:03]} 15. Bd4 {[%emt 0:00:06]} Ne6 {[%emt 0:00:29]} 16. Rc1 {[%emt 0:01:23]} Nxd4 {[%emt 0:00:14]} 17. Qxd4 {[%emt 0:00:03]} Qa8 {[%emt 0:00:30] Inhibits Nd5.} 18. Rfd1 {[%emt 0:00:15]} Rb8 {[%emt 0:00:43] Against Nb6} 19. Rb1 {[%emt 0:02:30]} ({White should try} 19. Nd5 $15 Qxd5 20. Qxd5 Nxd5 21. Rxd5) 19... Ne4 $19 {[%emt 0:00:48]} 20. Qd3 {[%emt 0:00:53]} Nc3 {[%emt 0:00:32]} 21. Nd5 {[%emt 0:00:05]} Nxd1 {[%emt 0:01:25]} (21... Nxb1 22. Nc7 Qc6 23. Nxa6 Qxa6 24. Rxb1 $11) 22. Nxe7+ {[%emt 0:01:15] Pair of Knights!} Kf8 {[%emt 0:00:17]} 23. Nd5 {[%emt 0:00:07] [#] Against Nc3} Nxf2 {[%emt 0:00:40]} 24. Kxf2 {[%emt 0:00:03]} Re8 {[%emt 0:01:09]} 25. Rd1 {[%emt 0:00:18]} Qc8 {[%emt 0:00:44] Against Nc7} 26. Kg2 {[%emt 0:01:08]} Rc6 {[%emt 0:01:23][%cal Oa5a4]} 27. Rf1 {[%emt 0:00:17]} Qg4 {[%emt 0:02:19]} 28. Nf4 {[%emt 0:01:12]} Be5 {[%emt 0:01:08]} 29. h3 {[%emt 0:00:14]} Qg5 {[%emt 0:00:52]} 30. e4 {[%emt 0:00:27]} Bxf4 {[%emt 0:00:19]} 31. Rxf4 {[%emt 0:00:07]} Qc5 {[%emt 0:00:43][%cal Oa5a4]} 32. Qc3 {[%emt 0:00:26] [#]} (32. a4 $142) 32... Kg8 $1 {[%emt 0:00:55] Hoping for ...d5. Black has a decisive advantage.} ({And not} 32... Re5 33. Qa1 $15) 33. Qf6 {[%emt 0:00:11]} Rf8 {[%emt 0:00:01] And now ...d5 would win.} 34. Qe7 {[%emt 0:01:20]} d5 {[%emt 0:00:12] Weighted Error Value: White=0.24 (precise) /Black=0.05 (flawless)} 0-1

[Event "Rosh Hashanah Rapid 2022"]
[Site "Ramat Gan"]
[Date "2022.09.25"]
[Round "5.6"]
[White "Parkhov, Yair"]
[Black "Gurevich, Yosef"]
[Result "1-0"]
[ECO "E73"]
[WhiteElo "2479"]
[BlackElo "1914"]
[Annotator "TA"]
[PlyCount "61"]
[EventDate "2022.09.25"]
[EventType "rapid"]
[EventCountry "ISR"]
[SourceTitle "playchess.com"]
[Source "ChessBase"]
[SourceQuality "1"]
[TimeControl "900+5"]

{[%evp 13,61,38,31,41,42,42,52,50,54,33,58,58,46,45,160,148,269,282,269,231,357,372,403,404,376,177,272,288,282,266,269,277,256,263,227,198,435,406,430,-232,382,410,29991,29992,29995,29996,29996,29996,29996,29997]} 1. d4 {[%emt 0:00:01]} Nf6 {[%emt 0:00:01]} 2. c4 {[%emt 0:00:01]} g6 {[%emt 0:00:02]} 3. Nc3 {[%emt 0:00:01]} Bg7 {[%emt 0:00:01]} 4. e4 {[%emt 0:00:01]} d6 {[%emt 0:00:00]} 5. Be2 {[%emt 0:00:02]} O-O {[%emt 0:00:03]} 6. Be3 {[%emt 0:00:02]} c5 {[%emt 0:00:01]} 7. d5 {[%emt 0:00:01]} e6 {[%emt 0:00:02]} 8. Nf3 {[%emt 0:00:02] E73: King's Indian: Averbakh Variation without 6...c5.} exd5 {[%emt 0:00:02]} 9. cxd5 {[%emt 0:00:01]} b5 {[%emt 0:00:03]} 10. e5 $1 {[%emt 0:00:01] White is slightly better.} Ng4 {[%emt 0:00:04]} 11. Bg5 {[%emt 0:00:03]} (11. Nxb5 Nxe5 12. Nxe5 Bxe5 $11) 11... Qb6 {[%emt 0:00:23]} 12. exd6 {[%emt 0:00:06]} (12. Bxb5 a6 13. Be2 Nxe5 $15) 12... b4 {[%emt 0:00:19]} 13. Ne4 $36 {[%emt 0:00:02][%mdl 2048] White has some pressure.} Re8 {[%emt 0:00:13] [#]} (13... Nd7 $14) 14. Nfd2 $1 $16 {[%emt 0:00:57] [#]} h6 $146 {[%emt 0:03:43]} (14... Ne5 $16 {was called for.}) ({Predecessor:} 14... Bf5 15. Be7 c4 16. Bxg4 c3 17. O-O Bxg4 18. Qxg4 cxd2 19. Ng5 h6 20. Nxf7 Rxe7 21. dxe7 Kxf7 22. Rad1 Qd6 23. e8=Q+ Kxe8 24. Qc8+ Qd8 25. Rfe1+ {1-0 (25) Vrolijk,L (2478)-Van Dael,S (2273) Hoogeveen 2019}) 15. Be7 $18 {[%emt 0:00:04]} ({Weaker is} 15. Bxg4 hxg5 16. Bxc8 Rxc8 $16) 15... Ne5 {[%emt 0:00:32]} 16. O-O {[%emt 0:00:32]} Bf5 {[%emt 0:01:02]} (16... c4 $142 17. Rc1 (17. Nxc4 Nxc4 18. Bxc4 Nd7 $16) (17. Bxc4 Nbd7 $16) 17... Qd4 18. Nf6+ (18. Bxc4 Nbd7 $16) 18... Bxf6) 17. f4 {[%emt 0:00:51]} Ned7 {[%emt 0:00:36]} 18. Nc4 {[%emt 0:00:22]} Qb7 {[%emt 0:00:25]} 19. Bf3 {[%emt 0:01:57]} (19. Ng3 $142) 19... Bd4+ {[%emt 0:01:18]} (19... Nb6 $142) 20. Kh1 {[%emt 0:00:02] Ng3 is the strong threat.} Bxe4 {[%emt 0:00:10]} 21. Bxe4 {[%emt 0:00:02] Strongly threatening f5.} Nf6 {[%emt 0:00:27]} 22. Qd3 {[%emt 0:00:37][%cal Oe4g6] Hoping for Bxg6!} Nxe4 {[%emt 0:00:33]} 23. Qxe4 {[%emt 0:00:02] And now f5 would win.} Nd7 {[%emt 0:00:23]} 24. Ne5 {[%emt 0:00:33][%cal Oe5f7] Black must now prevent Nxf7!} Nb6 $2 {[%emt 0:01:09] [#]} (24... Rxe7 25. dxe7 Nf6) 25. Nxf7 $1 {[%emt 0:01:34][%mdl 512]} Kxf7 {[%emt 0:00:15]} 26. Qe6+ {[%emt 0:00:01]} Kg7 {[%emt 0:00:02]} 27. f5 {[%emt 0:00:01] Dancing on a razor blade.} gxf5 {[%emt 0:00:26]} (27... Kh8 $18 28. Qxg6 Rxe7 29. dxe7 Qxe7) 28. Rxf5 {[%emt 0:00:05] White mates.} Kh7 {[%emt 0:00:50]} 29. Rf7+ {[%emt 0:00:18]} Bg7 {[%emt 0:00:04]} 30. Rxg7+ {[%emt 0:00:06]} Kxg7 {[%emt 0:00:08]} 31. Qf6+ {[%emt 0:00:02] Weighted Error Value: White=0.12 (very precise) /Black=0.60} 1-0